bitfinex-derivatives/quotes_BTCF0:USTF0_20250915
["timestamp","ask_amount","ask_price","bid_price","bid_amount"]
[1757918115165,0.03777139,116320.0,116310.0,2.01116]
[1757918115359,0.03777139,116320.0,116310.0,2.14285998]
[1757918116163,0.03777139,116320.0,116310.0,2.01116]
[1757918118566,0.03777139,116320.0,116310.0,2.14285998]
[1757918119967,0.03777139,116320.0,116310.0,1.81285998]
[1757918120162,0.03777139,116320.0,116310.0,1.02249998]
[1757918120469,0.03777139,116320.0,116310.0,1.81289998]
[1757918120664,0.31097139,116320.0,116310.0,1.3202]
[1757918121266,0.31097139,116320.0,116310.0,0.53]
[1757918121469,0.31097139,116320.0,116310.0,1.32012]
[1757918123770,0.31097139,116320.0,116310.0,1.45181998]
[1757918124069,0.28777139,116320.0,116310.0,1.81261998]
[1757918124462,0.28777139,116320.0,116310.0,1.68092]
[1757918124663,0.31097139,116320.0,116310.0,1.45149998]
[1757918125866,0.31097139,116320.0,116310.0,1.81229998]
[1757918126070,0.03777139,116320.0,116310.0,1.6806]
[1757918127770,0.03777139,116320.0,116310.0,1.9906]
[1757918128269,0.01512,116320.0,116310.0,1.9906]
[1757918128864,0.03771254,116320.0,116310.0,1.9906]
[1757918129069,0.03771254,116320.0,116310.0,1.2008]
[1757918129269,0.03771254,116320.0,116310.0,1.9902]
[1757918129667,0.03771254,116320.0,116310.0,2.12189998]
[1757918131067,0.03771254,116320.0,116310.0,1.9902]
[1757918131569,0.01512,116320.0,116310.0,1.9902]
[1757918131770,0.03771186,116320.0,116310.0,1.9902]
[1757918131969,0.01512,116320.0,116310.0,1.9902]
[1757918132169,0.03771199,116320.0,116310.0,1.9902]
[1757918132369,0.01512,116320.0,116310.0,1.9902]
[1757918136276,0.01512,116320.0,116310.0,1.2008]
[1757918136479,0.01512,116320.0,116310.0,1.98976]
[1757918138473,0.01512,116320.0,116310.0,2.12147613]
[1757918139982,0.01512,116320.0,116310.0,2.20742653]
[1757918140182,0.01512,116320.0,116310.0,2.12147613]
[1757918140480,0.002,116320.0,116310.0,2.20742653]
[1757918140775,0.016,116320.0,116310.0,2.12147613]
[1757918141281,0.016,116320.0,116310.0,1.9892]
[1757918141469,0.016,116320.0,116310.0,1.2008]
[1757918141672,0.015,116320.0,116310.0,1.9892]
[1757918141868,0.014,116320.0,116310.0,1.9892]
[1757918142373,0.014,116320.0,116310.0,2.12091613]
[1757918143479,0.014,116320.0,116310.0,1.33251613]
[1757918143681,0.014,116320.0,116310.0,1.98888]
[1757918143978,0.014,116320.0,116310.0,2.12059613]
[1757918145883,0.014,116320.0,116310.0,1.75979613]
[1757918146082,0.014,116320.0,116310.0,2.12059613]
[1757918148986,0.014,116320.0,116310.0,2.12023613]
[1757918149376,0.014,116320.0,116310.0,1.98852]
[1757918149685,0.014,116320.0,116310.0,2.12023613]
[1757918149881,0.014,116320.0,116310.0,2.11999613]
[1757918150181,0.014,116320.0,116310.0,1.33251613]
[1757918150390,0.014,116320.0,116310.0,2.11999613]
[1757918151087,0.014,116320.0,116310.0,1.33251613]
[1757918151286,0.014,116320.0,116310.0,1.98828]
[1757918151487,0.0365686,116320.0,116310.0,1.2008]
[1757918151687,0.014,116320.0,116310.0,1.67828]
[1757918151882,0.28603,116320.0,116310.0,0.8908]
[1757918152085,0.28603,116320.0,116310.0,1.31748]
[1757918152386,0.3085989,116320.0,116310.0,1.31748]
[1757918152683,0.3085989,116320.0,116310.0,0.53]
[1757918152889,0.3085989,116320.0,116310.0,1.31748]
[1757918154695,0.3125989,116320.0,116310.0,1.31748]
[1757918155492,0.3125989,116320.0,116310.0,1.31752]
[1757918156293,0.6733989,116320.0,116310.0,0.53]
[1757918156497,0.6733989,116320.0,116310.0,1.31752]
[1757918157796,0.68200091,116320.0,116310.0,0.53]
[1757918157990,0.6733989,116320.0,116310.0,0.53]
[1757918158187,0.03526,116310.0,116300.0,0.78752]
[1757918158390,0.03526,116310.0,116290.0,0.00856959]
[1757918158391,0.0134,116300.0,116290.0,0.00856959]
[1757918158593,0.03526,116290.0,116280.0,0.3608]
[1757918158788,0.03526,116290.0,116280.0,1.14832]
[1757918159598,0.03526,116290.0,116280.0,1.15680397]
[1757918161196,0.03526,116290.0,116280.0,0.37028397]
[1757918161597,0.03526,116290.0,116280.0,0.78864]
[1757918161792,0.28526,116290.0,116280.0,0.001]
[1757918161995,0.28526,116290.0,116280.0,0.78772]
[1757918163001,0.03526,116290.0,116280.0,0.78772]
[1757918163297,0.0134,116280.0,116270.0,0.36958122]
[1757918163496,0.03526,116280.0,116270.0,1.15726122]
[1757918163699,0.03526,116280.0,116270.0,1.28897735]
[1757918164799,0.0134,116280.0,116270.0,2.25726122]
[1757918165105,0.0134,116280.0,116270.0,2.25826122]
[1757918165599,0.0134,116280.0,116270.0,2.25726122]
[1757918165899,0.0134,116280.0,116270.0,2.34323992]
[1757918166498,0.0134,116290.0,116270.0,2.34323992]
[1757918166703,0.0134,116290.0,116280.0,0.4467713]
[1757918167007,0.0134,116290.0,116280.0,1.2967713]
[1757918167302,0.0134,116290.0,116280.0,1.67848743]
[1757918168301,0.0154,116290.0,116280.0,1.67848743]
[1757918168497,0.0154,116290.0,116280.0,1.59251613]
[1757918169001,0.0154,116290.0,116280.0,2.38083613]
[1757918169401,0.0154,116290.0,116280.0,2.24924]
[1757918169905,0.0154,116290.0,116280.0,1.34251613]
[1757918170106,0.0154,116290.0,116280.0,1.2108]
[1757918170304,0.0154,116290.0,116280.0,1.99944]
[1757918171206,0.2654,116290.0,116280.0,1.99936]
[1757918171501,0.28814,116290.0,116280.0,1.69936]
[1757918173009,0.03814,116290.0,116280.0,1.69936]
[1757918173210,0.03814,116290.0,116280.0,1.83107613]
[1757918174210,0.03814,116290.0,116280.0,1.69936]
[1757918174903,0.28814,116290.0,116280.0,0.9108]
[1757918175101,0.28814,116290.0,116280.0,0.55]
[1757918175302,0.28814,116290.0,116280.0,1.3384]
[1757918175905,0.28814,116290.0,116280.0,0.55]
[1757918176106,0.28814,116290.0,116280.0,1.33832]
[1757918179413,0.03814,116290.0,116280.0,1.74912]
[1757918179614,0.0154,116290.0,116280.0,1.99912]
[1757918179813,0.0154,116290.0,116280.0,1.2108]
[1757918180112,0.0154,116290.0,116280.0,1.9996]
[1757918180914,0.0154,116290.0,116280.0,1.34251613]
[1757918181515,0.0154,116290.0,116280.0,1.99952]
[1757918181914,0.0154,116290.0,116280.0,1.2108]
[1757918182126,0.0154,116290.0,116280.0,1.75016]
[1757918183209,0.03814,116290.0,116280.0,0.9608]
[1757918183414,0.06084042,116290.0,116280.0,1.33924]
[1757918185325,0.06084042,116290.0,116280.0,0.55]
[1757918185622,0.06084042,116290.0,116280.0,1.33948]
[1757918186417,0.06084042,116290.0,116280.0,0.78948]
[1757918186624,0.06084042,116290.0,116280.0,0.82948]
[1757918186818,0.31084042,116290.0,116280.0,0.82948]
[1757918187214,0.37882257,116290.0,116280.0,0.82948]
[1757918191725,0.37882257,116290.0,116280.0,0.78948]
[1757918193124,0.38139257,116290.0,116280.0,0.78948]
[1757918194731,0.38139257,116290.0,116280.0,1.33199613]
[1757918194732,0.06341042,116290.0,116280.0,1.33199613]
[1757918194932,0.06341042,116290.0,116280.0,0.9208]
[1757918195123,0.06341042,116290.0,116280.0,1.35168]
[1757918198126,0.06341042,116290.0,116280.0,1.48339613]
[1757918198626,0.04071,116290.0,116280.0,1.84419613]
[1757918199332,0.04071,116290.0,116280.0,1.89419613]
[1757918199629,0.01797,116290.0,116280.0,1.76248]
[1757918200030,0.01797,116290.0,116280.0,1.89425344]
[1757918201731,0.04041,116290.0,116280.0,0.61]
[1757918201931,0.04041,116290.0,116280.0,1.40344]
[1757918202133,0.04041,116290.0,116280.0,1.53521344]
[1757918203031,0.06308819,116290.0,116280.0,1.53521344]
[1757918204534,0.06308819,116290.0,116280.0,1.89601344]
[1757918205731,0.06308819,116290.0,116280.0,1.89557344]
[1757918207134,0.04064819,116290.0,116280.0,1.89557344]
[1757918207930,0.04064819,116290.0,116280.0,1.10257344]
[1757918208135,0.04064819,116290.0,116280.0,1.7636]
[1757918208331,0.04064819,116290.0,116280.0,1.89537344]
[1757918209032,0.04064819,116290.0,116280.0,1.7636]
[1757918209340,0.04064819,116290.0,116280.0,1.89537344]
[1757918209551,0.04064819,116290.0,116280.0,0.9708]
[1757918209836,0.04064819,116290.0,116280.0,1.89541344]
[1757918210736,0.04064819,116290.0,116280.0,1.10257344]
[1757918211237,0.04064819,116290.0,116280.0,1.7658]
[1757918211536,0.04064819,116290.0,116280.0,1.89757344]
[1757918211937,0.04064819,116290.0,116280.0,1.7658]
[1757918214038,0.04064819,116290.0,116280.0,1.76568]
[1757918215239,0.04064819,116290.0,116280.0,1.89745344]
[1757918215837,0.04064819,116290.0,116280.0,1.71568]
[1757918216037,0.04064819,116290.0,116280.0,2.00568]
[1757918216643,0.04064819,116290.0,116280.0,2.13745344]
[1757918217142,0.04064819,116290.0,116280.0,2.00568]
[1757918217343,0.04064819,116290.0,116280.0,2.13745344]
[1757918217541,0.04064819,116290.0,116280.0,2.00568]
[1757918217742,0.04064819,116290.0,116280.0,2.13745344]
[1757918224749,0.04064819,116290.0,116280.0,1.89745344]
[1757918226247,0.04064819,116290.0,116280.0,2.14745344]
[1757918226449,0.04064819,116290.0,116280.0,2.38745344]
[1757918226646,0.04064819,116290.0,116280.0,2.25568]
[1757918227246,0.04064819,116290.0,116280.0,1.4608]
[1757918227447,0.04064819,116290.0,116280.0,2.38665344]
[1757918227946,0.01797,116290.0,116280.0,2.38665344]
[1757918228147,0.01797,116290.0,116280.0,2.38649344]
[1757918228751,0.01797,116290.0,116280.0,2.38637344]
[1757918230354,0.01797,116290.0,116280.0,1.59257344]
[1757918230555,0.01797,116290.0,116280.0,2.38613344]
[1757918231256,0.01797,116290.0,116280.0,1.59257344]
[1757918231558,0.01797,116290.0,116280.0,2.38593344]
[1757918231955,0.01797,116290.0,116280.0,1.4608]
[1757918232150,0.01797,116290.0,116280.0,1.2108]
[1757918232356,0.26797,116290.0,116280.0,1.2108]
[1757918232652,0.29074465,116290.0,116280.0,2.00456]
[1757918233954,0.29074465,116290.0,116280.0,1.71456]
[1757918234649,0.31302465,116290.0,116280.0,0.3608]
[1757918234856,0.03589,116280.0,116270.0,0.73752]
[1757918235054,0.03589,116270.0,116260.0,0.37813807]
[1757918235352,0.03589,116270.0,116260.0,1.17153807]
[1757918235755,0.03589,116270.0,116260.0,0.37813807]
[1757918235957,0.03589,116270.0,116260.0,1.17153807]
[1757918237061,0.03589,116270.0,116260.0,1.18031032]
[1757918237763,0.03689,116270.0,116260.0,1.18031032]
[1757918238350,0.03689,116270.0,116260.0,1.69031032]
[1757918238561,0.03789,116270.0,116260.0,1.69031032]
[1757918238962,0.04047,116270.0,116260.0,1.69031032]
[1757918239764,0.01819,116270.0,116260.0,1.69031032]
[1757918243173,0.00458,116270.0,116260.0,1.69031032]
[1757918243374,0.01819,116270.0,116260.0,1.69031032]
[1757918244074,0.04093452,116270.0,116260.0,1.69031032]
[1757918244271,0.01819,116270.0,116260.0,1.69031032]
[1757918244472,0.01819,116270.0,116260.0,1.82208376]
[1757918246972,0.01819,116270.0,116260.0,1.69031032]
[1757918247269,0.01819,116270.0,116260.0,1.94031032]
[1757918247465,0.01819,116270.0,116260.0,1.99031032]
[1757918247871,0.01819,116270.0,116260.0,2.07208376]
[1757918248073,0.01819,116270.0,116260.0,2.38208376]
[1757918249271,0.01819,116270.0,116260.0,1.45691032]
[1757918249477,0.01819,116270.0,116260.0,2.24911032]
[1757918250279,0.01819,116270.0,116260.0,2.38088376]
[1757918253577,0.01819,116270.0,116260.0,2.24911032]
[1757918253777,0.01819,116270.0,116260.0,2.38088376]
[1757918254084,0.01819,116270.0,116260.0,2.38060376]
[1757918254387,0.01819,116270.0,116260.0,1.99879032]
[1757918255682,0.01819,116270.0,116260.0,2.13056376]
[1757918255885,0.01819,116270.0,116260.0,1.33868376]
[1757918256072,0.29047,116270.0,116260.0,1.66256]
[1757918258784,0.29047,116270.0,116260.0,1.66248]
[1757918258988,0.31320626,116270.0,116260.0,1.66248]
[1757918259489,0.06320626,116270.0,116260.0,1.66248]
[1757918259677,0.31320626,116270.0,116260.0,1.66248]
[1757918259879,0.33317215,116270.0,116260.0,0.05]
[1757918260075,0.33317215,116270.0,116260.0,0.8418]
[1757918260281,0.33317215,116270.0,116260.0,0.05]
[1757918260481,0.33317215,116270.0,116260.0,0.84184]
[1757918260883,0.01349,116250.0,116240.0,0.3608]
[1757918261084,0.01349,116250.0,116230.0,0.37812022]
[1757918261085,0.01349,116240.0,116230.0,0.37812022]
[1757918261293,0.03495,116240.0,116230.0,1.16992022]
[1757918261981,0.03495,116240.0,116230.0,1.69992022]
[1757918262382,0.03495,116240.0,116230.0,1.70864516]
[1757918263487,0.01349,116240.0,116230.0,2.15051356]
[1757918263887,0.01349,116240.0,116230.0,2.15151356]
[1757918264086,0.01349,116240.0,116230.0,2.22385606]
[1757918264789,0.01607,116240.0,116230.0,2.22385606]
[1757918267186,0.01607,116240.0,116230.0,2.09198766]
[1757918267390,0.01607,116240.0,116230.0,2.22385606]
[1757918268093,0.01607,116240.0,116230.0,1.43205606]
[1757918268394,0.01607,116240.0,116230.0,2.22317606]
[1757918268592,0.01607,116240.0,116230.0,2.22321606]
[1757918268794,0.64833,116240.0,116230.0,0.003]
[1757918269696,0.39833,116240.0,116230.0,0.053]
[1757918269888,0.03753,116240.0,116230.0,0.79404]
[1757918270193,0.03753,116240.0,116230.0,0.79104]
[1757918270389,0.03753,116240.0,116230.0,0.79204]
[1757918270692,0.03753,116240.0,116230.0,1.40204]
[1757918273794,0.03753,116240.0,116230.0,1.76284]
[1757918276900,0.01607,116240.0,116230.0,2.2347084]
[1757918277791,0.01607,116240.0,116230.0,2.35284]
[1757918277991,0.01607,116240.0,116230.0,2.4847084]
[1757918279098,0.01607,116240.0,116230.0,1.5618]
[1757918279299,0.01607,116240.0,116230.0,2.4851484]
[1757918279998,0.01607,116240.0,116230.0,2.35328]
[1757918280897,0.01607,116240.0,116230.0,1.5618]
[1757918281200,0.01607,116240.0,116230.0,2.4849884]
[1757918281501,0.01607,116240.0,116230.0,1.5618]
[1757918281700,0.01607,116240.0,116230.0,2.35304]
[1757918282099,0.01607,116240.0,116230.0,2.4849084]
[1757918282900,0.01607,116240.0,116230.0,1.6936684]
[1757918283103,0.01607,116240.0,116230.0,2.4849084]
[1757918283295,0.01607,116240.0,116230.0,1.6936684]
[1757918283501,0.01607,116240.0,116230.0,2.4848284]
[1757918284101,0.01607,116240.0,116230.0,2.4847084]
[1757918286196,0.01607,116240.0,116230.0,1.6936684]
[1757918286402,0.01607,116240.0,116230.0,2.4844684]
[1757918288912,0.01607,116240.0,116230.0,2.4842284]
[1757918289711,0.01607,116240.0,116230.0,2.35236]
[1757918289907,0.01607,116240.0,116230.0,2.4842284]
[1757918290513,0.01607,116240.0,116230.0,2.35236]
[1757918290811,0.01607,116240.0,116230.0,2.4842284]
[1757918291513,0.01607,116240.0,116230.0,1.5618]
[1757918291716,0.01607,116240.0,116230.0,1.6936684]
[1757918291916,0.01607,116240.0,116230.0,2.4839084]
[1757918292915,0.01607,116240.0,116230.0,2.35204]
[1757918293118,0.01607,116240.0,116230.0,2.4839084]
[1757918293314,0.01607,116240.0,116230.0,2.4838684]
[1757918293518,0.01607,116240.0,116230.0,2.4837484]
[1757918294424,0.01607,116240.0,116230.0,1.5618]
[1757918294720,0.01607,116240.0,116230.0,2.10188]
[1757918294917,0.01607,116240.0,116230.0,1.3118]
[1757918295115,0.26607,116240.0,116230.0,2.10176]
[1757918295516,0.28856,116240.0,116230.0,0.9718]
[1757918295717,0.31135082,116240.0,116230.0,1.40096]
[1757918296317,0.28856,116240.0,116230.0,1.40096]
[1757918296819,0.28856,116240.0,116230.0,0.611]
[1757918297026,0.67214589,116240.0,116230.0,1.40092]
[1757918297224,0.67214589,116240.0,116230.0,0.611]
[1757918297425,0.67214589,116240.0,116230.0,1.4012]
[1757918299932,0.28856,116240.0,116230.0,1.4012]
[1757918302434,0.28856,116240.0,116230.0,1.4008]
[1757918307534,0.28856,116240.0,116230.0,1.40048]
[1757918311236,0.28856,116240.0,116230.0,0.84048]
[1757918313435,0.03856,116240.0,116230.0,0.84048]
[1757918313642,0.03856,116240.0,116230.0,1.20128]
[1757918317338,0.03856,116240.0,116230.0,1.77128]
[1757918321837,0.06134514,116240.0,116230.0,1.90319306]
[1757918324738,0.06134514,116240.0,116230.0,1.11371306]
[1757918324938,0.06134514,116240.0,116230.0,1.90319306]
[1757918326446,0.06134514,116240.0,116230.0,1.77128]
[1757918326745,0.06134514,116240.0,116230.0,1.28319306]
[1757918327149,0.06134514,116240.0,116230.0,1.79319306]
[1757918329842,0.03885514,116240.0,116230.0,2.23128]
[1757918330044,0.01607,116240.0,116230.0,2.23124]
[1757918330540,0.03887769,116240.0,116230.0,2.23124]
[1757918332350,0.03887769,116240.0,116230.0,1.4418]
[1757918332540,0.03887769,116240.0,116230.0,2.23124]
[1757918334044,0.02538769,116240.0,116230.0,2.49784]
[1757918334350,0.00258,116240.0,116230.0,2.49784]
[1757918334549,0.00258,116240.0,116230.0,2.59472439]
[1757918334848,0.01349,116250.0,116230.0,2.59472439]
[1757918335044,0.01349,116250.0,116240.0,0.37811194]
[1757918335249,0.03629509,116250.0,116240.0,1.27811194]
[1757918335445,0.03629509,116250.0,116240.0,1.410025]
[1757918335645,0.03629509,116250.0,116240.0,2.199425]
[1757918336148,0.01349,116250.0,116240.0,2.199425]
[1757918338444,0.01349,116250.0,116240.0,1.27811194]
[1757918338644,0.01349,116250.0,116240.0,2.06743194]
[1757918339154,0.01349,116250.0,116240.0,2.199345]
[1757918341248,0.01349,116250.0,116240.0,1.410025]
[1757918341442,0.01349,116250.0,116240.0,2.199345]
[1757918342053,0.01349,116250.0,116240.0,1.660025]
[1757918342354,0.01349,116250.0,116240.0,2.449305]
[1757918344147,0.01349,116260.0,116240.0,2.449305]
[1757918344347,0.01349,116260.0,116250.0,0.3608]
[1757918344653,0.01349,116260.0,116250.0,1.2308]
[1757918345656,0.01361,116270.0,116250.0,1.2308]
[1757918345955,0.01361,116270.0,116260.0,1.15004]
[1757918346157,0.01361,116270.0,116260.0,2.04004]
[1757918346453,0.01361,116270.0,116260.0,2.37436259]
[1757918348056,0.01361,116270.0,116260.0,2.50627565]
[1757918348256,0.01361,116270.0,116260.0,2.37436259]
[1757918348457,0.01361,116270.0,116260.0,2.50627565]
[1757918348659,0.01531,116280.0,116260.0,2.50627565]
[1757918348854,0.03807004,116280.0,116270.0,0.3608]
[1757918349056,0.03807004,116280.0,116270.0,1.1808]
[1757918349459,0.03807004,116280.0,116270.0,1.19807143]
[1757918350556,0.04007004,116280.0,116270.0,1.19807143]
[1757918351957,0.01731,116280.0,116270.0,1.28404893]
[1757918352761,0.00458,116280.0,116270.0,1.28404893]
[1757918353461,0.00458,116280.0,116270.0,1.19807143]
[1757918353659,0.00458,116280.0,116270.0,1.98711143]
[1757918354664,0.00358,116280.0,116270.0,1.98711143]
[1757918355061,0.01689,116280.0,116270.0,1.98711143]
[1757918355259,0.01689,116280.0,116270.0,1.19807143]
[1757918355656,0.01689,116280.0,116270.0,1.98707143]
[1757918356262,0.01589,116280.0,116270.0,1.19807143]
[1757918356454,0.01589,116280.0,116270.0,1.98707143]
[1757918358458,0.01589,116280.0,116270.0,1.19807143]
[1757918358667,0.01589,116280.0,116270.0,1.98699143]
[1757918358962,0.01331,116280.0,116270.0,1.98699143]
[1757918362061,0.01331,116280.0,116270.0,2.12979143]
[1757918362967,0.03608138,116280.0,116270.0,2.12979143]
[1757918363769,0.28608138,116280.0,116270.0,1.19807143]
[1757918363967,0.28608138,116280.0,116270.0,1.98687143]
[1757918365767,0.28609578,116280.0,116270.0,1.98687143]
[1757918368058,0.41800884,116280.0,116270.0,1.19807143]
[1757918368262,0.41800884,116280.0,116270.0,1.98683143]
[1757918368463,0.41800884,116280.0,116270.0,1.19807143]
[1757918368664,0.41800884,116280.0,116270.0,1.98683143]
[1757918368863,0.41800884,116280.0,116270.0,1.75683143]
[1757918369066,0.44031884,116280.0,116270.0,1.75683143]
[1757918369269,0.44031884,116280.0,116270.0,1.34603143]
[1757918369971,0.44131884,116280.0,116270.0,1.34603143]
[1757918370170,0.44231884,116280.0,116270.0,1.34603143]
[1757918375877,0.31040578,116280.0,116270.0,1.34603143]
[1757918376570,0.44231884,116280.0,116270.0,1.34603143]
[1757918377676,0.44231884,116280.0,116270.0,1.32876]
[1757918379371,0.19231884,116280.0,116270.0,1.32876]
[1757918379874,0.19231884,116280.0,116270.0,0.78876]
[1757918381179,0.06040578,116280.0,116270.0,0.78876]
[1757918381481,0.19231884,116280.0,116270.0,1.36876]
[1757918382573,0.06040578,116280.0,116270.0,1.36876]
[1757918382876,0.19231884,116280.0,116270.0,1.36876]
[1757918383079,0.06040578,116280.0,116270.0,1.36876]
[1757918383377,0.19231884,116280.0,116270.0,1.72956]
[1757918383779,0.06040578,116280.0,116270.0,1.72956]
[1757918390483,0.06040578,116280.0,116270.0,0.9408]
[1757918395187,0.06040578,116280.0,116270.0,0.58]
[1757918403597,0.19222172,116280.0,116270.0,0.58]
[1757918403797,0.19222172,116280.0,116270.0,1.36832]
[1757918404200,0.06040578,116280.0,116270.0,1.36832]
[1757918405099,0.42120578,116280.0,116270.0,1.36828]
[1757918406400,0.55302172,116280.0,116270.0,1.36828]
[1757918407301,0.55302172,116280.0,116270.0,0.58]
[1757918407500,0.55302172,116280.0,116270.0,1.36824]
[1757918408590,0.55302172,116280.0,116270.0,0.58]
[1757918408799,0.55302172,116280.0,116270.0,1.36824]
[1757918409401,0.55302172,116280.0,116270.0,1.3682]
[1757918410403,0.42120578,116280.0,116270.0,1.3682]
[1757918410694,0.55302172,116280.0,116270.0,1.3682]
[1757918412699,0.80302172,116280.0,116270.0,0.58]
[1757918412900,0.03469,116260.0,116250.0,2.01244]
[1757918413201,0.03469,116260.0,116250.0,3.79241594]
[1757918413399,0.03469,116260.0,116250.0,2.87244]
[1757918413601,0.03469,116260.0,116250.0,3.6606]
[1757918414101,0.03469,116260.0,116250.0,3.3606]
[1757918414307,0.03469,116260.0,116250.0,3.3616]
[1757918416000,0.39549,116260.0,116250.0,2.21264]
[1757918416207,0.41837886,116260.0,116250.0,0.78912]
[1757918416505,0.03469,116260.0,116250.0,1.69892]
[1757918416702,0.03569,116260.0,116250.0,1.33812]
[1757918417006,0.03569,116260.0,116250.0,1.69892]
[1757918417201,0.03669,116260.0,116250.0,1.69892]
[1757918417801,0.03669,116260.0,116250.0,1.33812]
[1757918422810,0.05956377,116260.0,116250.0,1.33812]
[1757918423814,0.19137971,116260.0,116250.0,1.33812]
[1757918426617,0.19137971,116260.0,116250.0,0.55]
[1757918426818,0.16650594,116250.0,116240.0,0.3608]
[1757918427023,0.03469,116250.0,116240.0,1.68884]
[1757918428022,0.03469,116250.0,116240.0,0.54]
[1757918428213,0.39549,116250.0,116240.0,1.328]
[1757918429120,0.52730594,116250.0,116240.0,1.328]
[1757918431520,0.39549,116250.0,116240.0,1.328]
[1757918435118,0.79765647,116250.0,116240.0,1.328]
[1757918435324,0.79765647,116250.0,116240.0,0.788]
[1757918437918,0.54765647,116250.0,116220.0,0.44653466]
[1757918438126,0.03514,116230.0,116220.0,0.52]
[1757918438314,0.03514,116230.0,116220.0,1.308]
[1757918438721,0.05798911,116230.0,116220.0,1.308]
[1757918439923,0.05898911,116230.0,116220.0,1.31645555]
[1757918440531,0.05998911,116230.0,116220.0,1.31745555]
[1757918441330,0.03914,116230.0,116220.0,1.31645555]
[1757918444228,0.06212594,116230.0,116220.0,1.31645555]
[1757918444927,0.03914,116230.0,116220.0,1.31645555]
[1757918445424,0.03914,116230.0,116220.0,1.80920155]
[1757918446029,0.03914,116230.0,116220.0,1.44840155]
[1757918446632,0.03914,116230.0,116220.0,1.31645555]
[1757918446832,0.03914,116230.0,116220.0,1.44840155]
[1757918447627,0.03914,116230.0,116220.0,1.31645555]
[1757918447831,0.03914,116230.0,116220.0,1.44840155]
[1757918449434,0.06211033,116230.0,116220.0,1.44840155]
[1757918449635,0.08190245,116230.0,116220.0,0.00845555]
[1757918449831,0.08190245,116230.0,116220.0,1.338]
[1757918450233,0.08190245,116230.0,116220.0,1.34650729]
[1757918450433,0.06211033,116230.0,116220.0,1.34650729]
[1757918451227,0.06211033,116230.0,116220.0,1.47845329]
[1757918451432,0.03914,116230.0,116220.0,1.83925329]
[1757918452333,0.0395901,116230.0,116220.0,1.83925329]
[1757918452530,0.0395901,116230.0,116220.0,1.70730729]
[1757918452931,0.03959008,116230.0,116220.0,1.70730729]
[1757918453439,0.03959008,116230.0,116220.0,1.83925329]
[1757918454140,0.01662,116230.0,116220.0,1.83925329]
[1757918454438,0.03959469,116230.0,116220.0,1.16930729]
[1757918454640,0.01662,116230.0,116220.0,2.08921329]
[1757918455340,0.03959455,116230.0,116220.0,2.08921329]
[1757918456137,0.04217455,116230.0,116220.0,1.16930729]
[1757918456434,0.04217455,116230.0,116220.0,1.95726729]
[1757918456827,0.04217455,116230.0,116220.0,2.00726729]
[1757918457031,0.04217455,116230.0,116220.0,2.13921329]
[1757918457232,0.04217455,116230.0,116220.0,1.35125329]
[1757918457541,0.04217455,116230.0,116220.0,1.88917329]
[1757918457838,0.04217455,116230.0,116220.0,1.10125329]
[1757918458039,0.04217455,116230.0,116220.0,1.88917329]
[1757918459335,0.04219188,116230.0,116220.0,1.88917329]
[1757918460237,0.04219188,116230.0,116220.0,1.75722729]
[1757918460428,0.04219188,116230.0,116220.0,1.88917329]
[1757918460633,0.04219188,116230.0,116220.0,1.10125329]
[1757918460834,0.06446188,116230.0,116220.0,0.96930729]
[1757918461034,0.06446188,116230.0,116220.0,1.88913329]
[1757918461235,0.06446188,116230.0,116220.0,0.96930729]
[1757918461435,0.06446188,116230.0,116220.0,1.75718729]
[1757918462034,0.33474845,116230.0,116220.0,0.91930729]
[1757918462236,0.31446188,116230.0,116220.0,1.34638729]
[1757918462636,0.06446188,116230.0,116220.0,1.70718729]
[1757918462843,0.06446188,116230.0,116220.0,1.83913329]
[1757918463242,0.06446188,116230.0,116220.0,1.34638729]
[1757918463442,0.06446188,116230.0,116220.0,1.47833329]
[1757918463641,0.06446188,116230.0,116220.0,1.83913329]
[1757918464240,0.06446188,116230.0,116220.0,1.70718729]
[1757918464444,0.06446188,116230.0,116220.0,1.83913329]
[1757918466844,0.04219188,116230.0,116220.0,1.87913329]
[1757918467044,0.04219188,116230.0,116220.0,1.74718729]
[1757918467950,0.04219188,116230.0,116220.0,1.87913329]
[1757918471449,0.04219188,116230.0,116220.0,1.74718729]
[1757918471646,0.04219188,116230.0,116220.0,1.87913329]
[1757918472554,0.04219188,116230.0,116220.0,0.55]
[1757918472750,0.01308,116220.0,116210.0,0.78776]
[1757918472941,0.41873188,116220.0,116210.0,1.36776]
[1757918473748,0.66873188,116220.0,116210.0,1.36776]
[1757918473952,0.66973188,116220.0,116210.0,1.36776]
[1757918474354,0.66973188,116220.0,116210.0,0.58]
[1757918474554,0.66973188,116220.0,116210.0,1.36776]
[1757918475052,0.67073188,116220.0,116210.0,1.36776]
[1757918475256,0.67173188,116220.0,116210.0,1.36776]
[1757918475449,0.31093188,116220.0,116210.0,1.36776]
[1757918476052,0.31093188,116220.0,116210.0,1.499706]
[1757918476256,0.30993188,116220.0,116210.0,1.499706]
[1757918476457,0.31193188,116220.0,116210.0,1.499706]
[1757918476858,0.31193188,116220.0,116210.0,1.499666]
[1757918477255,0.31451188,116220.0,116210.0,1.499666]
[1757918477457,0.06451188,116220.0,116210.0,1.36772]
[1757918477656,0.06451188,116220.0,116210.0,1.499666]
[1757918480262,0.06451188,116220.0,116210.0,1.36772]
[1757918480455,0.06451188,116220.0,116210.0,1.499666]
[1757918480960,0.06451188,116220.0,116210.0,1.36772]
[1757918480961,0.04265188,116220.0,116210.0,1.36772]
[1757918481269,0.04265188,116220.0,116210.0,1.72852]
[1757918482562,0.04265188,116220.0,116210.0,2.02852]
[1757918483360,0.04265188,116220.0,116210.0,1.2408]
[1757918483560,0.04265188,116220.0,116210.0,2.02852]
[1757918483757,0.04265188,116220.0,116210.0,1.2408]
[1757918483958,0.04265188,116220.0,116210.0,2.02852]
[1757918485969,0.04065188,116220.0,116210.0,2.02852]
[1757918486366,0.04065188,116220.0,116210.0,1.2408]
[1757918486668,0.04065188,116220.0,116210.0,2.02848]
[1757918487071,0.04065188,116220.0,116210.0,2.160426]
[1757918487264,0.04065188,116220.0,116210.0,1.372746]
[1757918487464,0.04065188,116220.0,116210.0,2.160426]